Cogmind - Beta 16.1 @@@ ROGUE MODE // 2026.02.14 @ 04:13:38 Player: alice_fexa Result: Escaped! Performance ------------- Evolutions (9) 4500 Regions Visited (12) 2400 Robots Destroyed (48) 240 Value Destroyed (1035) 1035 Prototype IDs (7) 140 Alien Tech Used (0) 0 Bonus (5172) 5172 TOTAL SCORE: 13487 Bonus ------- Entered DSFs 500 Win 3000 Win Speed 1672 Cogmind --------- Core Integrity 1600/1600 Matter 290/300 Energy 15/100 System Corruption 8% Temperature Cool (0) Movement Core (50) Location To Epsilon Eridani Parts ------- > --- POWER (1) -------- (None) > --- PROPULSION (2) --- (None) > --- UTILITY (20) ----- Advanced Visual Processing Unit Improved Signal Interpreter Advanced Signal Interpreter Advanced Signal Interpreter Experimental Signal Interpreter Advanced Terrain Scanner Terrain Scan Processor Improved Terrain Scan Processor Launcher Guidance Computer Experimental Core Analyzer Improved Hacking Suite Advanced Hacking Suite System Shield Advanced System Shield > --- WEAPON (2) ------- Improved Plasma Cutter > --- INVENTORY (5) ---- Advanced ECM Suite Nova Cannon Hypervelocity Multirail Heavy Rocket Launcher Power Maul Peak State ------------ > --- POWER ------------ (None) > --- PROPULSION ------- (None) > --- UTILITY ---------- Advanced Visual Processing Unit Improved Signal Interpreter Advanced Signal Interpreter Advanced Signal Interpreter Experimental Signal Interpreter Advanced Terrain Scanner Terrain Scan Processor Improved Terrain Scan Processor Launcher Guidance Computer Experimental Core Analyzer Improved Hacking Suite Advanced Hacking Suite System Shield Advanced System Shield > --- WEAPON ----------- Hypervelocity Multirail Improved Plasma Cutter > --- INVENTORY -------- Advanced ECM Suite Nova Cannon Heavy Rocket Launcher Power Maul [Rating: 89] Favorites ----------- Power Micro Fission Core Engine Improved Ion Engine Power Core Micro Fission Core Propulsion None Utility System Shield Device Advanced Weight Redist. System Processor Improved Signal Interpreter Hackware System Shield Protection Core Shielding Weapon Power Maul Energy Cannon Nova Cannon Ballistic Gun Light Assault Rifle Launcher Missile Launcher Special Weapon Improved Plasma Cutter Impact Weapon Power Maul Slashing Weapon Power Sword Piercing Weapon Plasma Lance Special Melee Weapon Advanced Datajack Build | -11 -10 -9 -8 -7 -6 -6 -5 -4 -3 -2 -2 -1 ------- Run | Yrd Mat Mat Mat Fac Fac DSF Fac Fac Res Res Tes Acc Slots Evolved 18 | . . 2 2 2 2 . 2 2 2 2 . 2 Power . | . . . . . . . . . . . . . Propulsion . | . . . . . . . . . . . . . Utility 18 | . . 2 2 2 2 . 2 2 2 2 . 2 Weapon . | . . . . . . . . . . . . . Parts Attached 68 | . 6 1 9 5 5 5 14 3 8 6 5 1 Power 4 | . 1 . . . . . 3 . . . . . Engine 2 | . 1 . . . . . 1 . . . . . Core 2 | . . . . . . . 2 . . . . . Reactor . | . . . . . . . . . . . . . Propulsion . | . . . . . . . . . . . . . Treads . | . . . . . . . . . . . . . Leg . | . . . . . . . . . . . . . Wheel . | . . . . . . . . . . . . . Hover . | . . . . . . . . . . . . . Flight . | . . . . . . . . . . . . . Utility 47 | . 2 . 5 4 4 5 9 1 7 6 3 1 Device 16 | . 1 . 2 1 1 . 4 1 4 2 . . Storage . | . . . . . . . . . . . . . Processor 14 | . . . . 2 2 . 2 . 1 3 3 1 Hackware 16 | . 1 . 2 1 1 5 3 . 2 1 . . Protection 1 | . . . 1 . . . . . . . . . Artifact . | . . . . . . . . . . . . . Weapon 17 | . 3 1 4 1 1 . 2 2 1 . 2 . Energy Gun . | . . . . . . . . . . . . . Energy Cannon 1 | . . . . . . . . . 1 . . . Ballistic Gun 5 | . 3 . 1 . . . . . . . 1 . Ballistic Cannon . | . . . . . . . . . . . . . Launcher 2 | . . . 1 . . . 1 . . . . . Special Weapon 1 | . . . . . . . . . . . 1 . Impact Weapon 5 | . . 1 2 1 1 . . . . . . . Slashing Weapon 1 | . . . . . . . 1 . . . . . Piercing Weapon 1 | . . . . . . . . 1 . . . . Special Melee Weapon 1 | . . . . . . . . 1 . . . . Unidentified Prototypes 4 | . . . . . . . . 1 . . 3 . Parts Lost 19 | . . . 3 1 . 1 1 . 6 6 1 . Power . | . . . . . . . . . . . . . Propulsion . | . . . . . . . . . . . . . Utility 18 | . . . 3 1 . 1 1 . 6 5 1 . Weapon 1 | . . . . . . . . . . 1 . . Highest Loss Streak 6 | . . . 2 1 . 1 1 . 5 6 1 . To Critical Strikes . | . . . . . . . . . . . . . Average Backups 4 | 3 4 4 4 5 5 5 4 5 4 4 4 5 Power . | 1 2 2 . . . . . . . . . . Propulsion . | . . . . . . . . . . . . . Utility . | . . 1 . . . . 2 1 . . 1 1 Weapon 3 | 2 1 1 3 5 5 5 2 3 2 2 3 4 Tool/Special . | . . . . . . . . . . . . . Unused Backups 9 | . . 1 2 . . . 4 . 1 . 1 . Power 2 | . . 1 1 . . . . . . . . . Propulsion . | . . . . . . . . . . . . . Utility 3 | . . . . . . . 2 . . . 1 . Weapon 4 | . . . 1 . . . 2 . 1 . . . Tool/Special . | . . . . . . . . . . . . . Average Slot Usage (%) 59 | . 51 29 36 44 37 61 71 73 83 52 55 59 Core 1 | . . . . . . . 1 5 3 . . . Device 11 | . 12 11 15 8 9 12 14 15 17 3 6 4 Processor 17 | . . . . 8 5 13 21 21 22 23 29 35 Hackware 23 | . 8 11 14 27 21 36 26 26 28 22 17 16 Ballistic Gun 1 | . 26 7 . . . . . . . . . . Impact Weapon 1 | . . . 2 . . . 2 4 . . . . Peak Build Rating 89 | . 6 6 14 22 26 41 56 69 88 66 87 89 Average Rating 43 | . 4 4 8 18 17 36 46 57 81 55 63 77 On Entrance 30 | . . 5 4 11 11 26 25 56 69 53 55 75 Avg Prop Armor Cover (%) . | . . . . . . . . . . . . . Naked Turns . | . . . . . . . . . . . . . Heaviest Build 13 | . 6 3 6 2 4 2 13 11 12 5 5 3 Greatest Support 12 | 3 3 3 3 3 3 3 12 12 12 3 3 3 Greatest Overweight (x) 2 | . 1 . 1 . 1 . 1 . 2 1 1 . Average Overweight (x) . | . . . . . . . . . . . . . Largest Inventory Capacity 5 | 5 5 5 5 5 5 5 5 5 5 5 5 5 Average Capacity 5 | 5 5 5 5 5 5 5 5 5 5 5 5 5 Most Carried 5 | 5 5 5 5 5 5 5 5 5 5 5 5 5 Average Carried 4 | 3 4 4 4 4 4 5 4 4 4 4 4 4 Final Capacity 5 | 5 5 5 5 5 5 5 5 5 5 5 5 5 Final Carried 5 | 5 5 4 5 5 5 5 5 5 5 5 5 5 Class Distribution -------------------- 30% | Wizard-Scout 25% | Hacker-Mutant 20% | Hacker-Scout 12% | Mutant 8% | Wizard-Mutant Dominant Class ---------------- Mutant | -10/Materials Mutant | -9/Materials Mutant | -8/Materials Hacker-Mutant | -7/Factory Hacker-Scout | -6/Factory Wizard-Scout | -6/DSF Wizard-Scout | -5/Factory Wizard-Scout | -4/Factory Wizard-Scout | -3/Research Wizard-Mutant | -2/Research Hacker-Scout | -2/Testing Hacker-Scout | -1/Access Resources | -11 -10 -9 -8 -7 -6 -6 -5 -4 -3 -2 -2 -1 ----------- Run | Yrd Mat Mat Mat Fac Fac DSF Fac Fac Res Res Tes Acc Matter Collected 1378 | 184 120 27 78 52 130 . 402 . 50 207 36 92 Remotely . | . . . . . . . . . . . . . Salvage Created 1933 | . 118 27 158 52 7 . 657 . 93 552 83 186 Parts 88 | . 8 3 21 . . . 22 . 9 14 . 11 Haulers Intercepted 4 | . . . . . . . 2 . . 1 1 . Recyclers Shooed 1 | . . . . . . . 1 . . . . . Parts Field Recycled . | . . . . . . . . . . . . . Retrieved Matter . | . . . . . . . . . . . . . Parts Self-Destructed . | . . . . . . . . . . . . . Prevented . | . . . . . . . . . . . . . Parts Restored . | . . . . . . . . . . . . . Kills | -11 -10 -9 -8 -7 -6 -6 -5 -4 -3 -2 -2 -1 ------- Run | Yrd Mat Mat Mat Fac Fac DSF Fac Fac Res Res Tes Acc Combat Hostiles Destroyed 20 | . 3 . 10 . . . 4 . . 1 . 2 Guns 5 | . 3 . . . . . . . . . . 2 AOE 14 | . . . 10 . . . 4 . . . . . Classes Destroyed 10 | . 2 1 3 . . . 3 . . 1 . . Worker 3 | . . . . . . . 2 . . 1 . . Builder 7 | . . 1 1 . 1 . 2 . 1 . . 1 Tunneler 1 | . . . 1 . . . . . . . . . Hauler 4 | . . . . . . . 2 . . 1 1 . Recycler 6 | . . . 1 1 . . 2 . . 2 . . Operator 1 | . 1 . . . . . . . . . . . Watcher 6 | . . . . . . . 2 . 2 2 . . Swarmer 14 | . . . 10 . . . 4 . . . . . Grunt 5 | . 3 . . . . . . . . . . 2 Programmer 1 | . . . . . . . . . . 1 . . Best Kill Streak 8 | . 1 1 8 1 1 . 4 . 1 2 1 2 Combat Bots Only 6 | . 1 . 6 . . . 4 . . 1 . 2 Max Kills in Single Turn 4 | . 1 1 4 1 1 . 3 . 1 1 1 2 Gunslinging . | . . . . . . . . . . . . . Exploded 3 | . . . 3 . . . 3 . . . . . Melee . | . . . . . . . . . . . . . Uniques/NPCs Destroyed . | . . . . . . . . . . . . . Combat | -11 -10 -9 -8 -7 -6 -6 -5 -4 -3 -2 -2 -1 -------- Run | Yrd Mat Mat Mat Fac Fac DSF Fac Fac Res Res Tes Acc Hostile Shots Fired 350 | . 20 29 61 100 . 40 9 . 52 33 4 2 Missed 151 | . 3 16 27 49 . 16 5 . 21 12 1 1 Hits 199 | . 17 13 34 51 . 24 4 . 31 21 3 1 Melee 10 | . . . . . . 10 . . . . . . Projectile 189 | . 17 13 34 51 . 14 4 . 31 21 3 1 AOE 1 | . . . . . . 1 . . . . . . Critical Strikes 8 | . . . . 1 . 4 . . 2 1 . . Damage Taken 3221 | . 189 118 492 579 . 456 75 . 741 481 70 20 Core 2341 | . 67 117 351 548 . 411 58 . 445 299 45 . Absorbed by Shields 65 | . . . . . . 65 . . . . . . Redirected to Shielding 52 | . . . 52 . . . . . . . . . Core Remaining (%) 71 | 100 73 70 36 21 . 51 94 100 65 . 76 100 Volleys Fired 53 | . 28 4 7 . . . 2 . 5 3 . 4 Largest 2 | . 2 1 1 . . . 1 . 1 1 . 1 Hottest 113 | . 40 20 36 . . . 39 . 113 113 . 113 Shots Fired 75 | . 50 4 7 . . . 2 . 5 3 . 4 Gun 58 | . 50 4 2 . . . . . . . . 2 Cannon 10 | . . . . . . . . . 5 3 . 2 Launcher 7 | . . . 5 . . . 2 . . . . . Special . | . . . . . . . . . . . . . Kinetic 58 | . 50 4 2 . . . . . . . . 2 Thermal 10 | . . . . . . . . . 5 3 . 2 Explosive 7 | . . . 5 . . . 2 . . . . . Electromagnetic . | . . . . . . . . . . . . . Robot Hit Streak 19 | . 19 2 1 . . . . . . . . 2 Robot Miss Streak 4 | . 3 2 4 . . . . . . . . 1 Penetration Max 1 | . . . . . . . . . . . . 1 Secondary Targets . | . . . . . . . . . . . . . Shots Hit Robots 88 | . 37 2 1 1 1 . 14 . 6 21 3 2 Core Hits 45 | . 10 1 12 . . . 9 . 2 7 . 4 Critical Kills 6 | . . . . . . . 3 . . . . 3 Critical Parts Destroyed 10 | . . . . . 1 . 4 . . 4 1 . Critical Strikes 17 | . . . . . 1 . 7 . . 5 1 3 Destroy 3 | . . . . . . . . . . . . 3 Smash 13 | . . . . . 1 . 7 . . 4 1 . Impale 1 | . . . . . . . . . . 1 . . Melee Attacks 100 | . . . 7 1 2 . 29 . 23 34 4 . Impact 57 | . . . 7 1 2 . 25 . . 18 4 . Slashing 4 | . . . . . . . 4 . . . . . Piercing 38 | . . . . . . . . . 22 16 . . Sneak Attacks 19 | . . . . 1 1 . 9 . 3 4 1 . Combat Hostiles . | . . . . . . . . . . . . . Follow-up Attacks . | . . . . . . . . . . . . . Damage Inflicted 4782 | . 305 32 952 100 96 . 1458 . 426 1165 222 26 Guns 372 | . 305 26 15 . . . . . . . . 26 Cannons . | . . . . . . . . . . . . . Explosions 1260 | . . . 937 . . . 323 . . . . . Melee 3144 | . . . . 100 96 . 1135 . 426 1165 222 . Ramming 6 | . . 6 . . . . . . . . . . Kinetic 372 | . 305 26 15 . . . . . . . . 26 Thermal . | . . . . . . . . . . . . . Explosive 1260 | . . . 937 . . . 323 . . . . . Electromagnetic . | . . . . . . . . . . . . . Impact 1927 | . . . . 100 96 . 970 . . 539 222 . Slashing 165 | . . . . . . . 165 . . . . . Piercing 1052 | . . . . . . . . . 426 626 . . Highest Corruption 8 | . . 2 . 2 . . . . 3 2 2 8 Average Corruption 2 | . . 2 . 2 . . . . 2 2 2 7 Corruption Purged . | . . . . . . . . . . . . . Corruption Blocked . | . . . . . . . . . . . . . Effects 18 | . . . . 7 . . . . . 5 . 6 Message Errors 4 | . . . . 1 . . . . . 1 . 2 Matter Fused 2 | . . . . . . . . . . 2 . . Heat Flow Errors 3 | . . . . . . . . . . . . 3 Energy Discharges 5 | . . . . 3 . . . . . 2 . . Data Loss (minor) 2 | . . . . 1 . . . . . . . 1 Data Loss (major) 1 | . . . . 1 . . . . . . . . Alerts 1 | . . . . 1 . . . . . . . . Overload Shots . | . . . . . . . . . . . . . Overflow Damage 1077 | . . . 52 75 96 . 449 . 74 275 56 . Projectiles . | . . . . . . . . . . . . . Explosions 74 | . . . 52 . . . 22 . . . . . Melee 1003 | . . . . 75 96 . 427 . 74 275 56 . Knockbacks 9 | . . . . 1 1 . 1 . . 6 . . Impact 9 | . . . . 1 1 . 1 . . 6 . . Kinetic . | . . . . . . . . . . . . . Secondary . | . . . . . . . . . . . . . Self-Inflicted Damage 47 | . . 3 44 . . . . . . . . . Shots 1 | . . . 1 . . . . . . . . . Rammed 2 | . . 2 . . . . . . . . . . Targets Rammed 2 | . . 2 . . . . . . . . . . Kicked . | . . . . . . . . . . . . . Crushed . | . . . . . . . . . . . . . Highest Temperature 141 | . 1 . . . . . . . 117 28 . 141 Average Temperature 33 | . 1 . . . . . . . 52 15 . 60 Received Heat Transfer 570 | . 102 30 108 183 . 24 18 . 78 9 18 . Siege Activations . | . . . . . . . . . . . . . Martial Activations . | . . . . . . . . . . . . . Shielding Activations . | . . . . . . . . . . . . . Robots Disrupted . | . . . . . . . . . . . . . Combat Hostiles . | . . . . . . . . . . . . . Robots Corrupted 5 | . . . . 1 1 . 2 . . 1 . . Combat Hostiles 1 | . . . . . . . . . . 1 . . Parts Fried 13 | . . . . . . . 8 . . 2 3 . Impact Corruptions 27 | . . . . 3 4 . 11 . . 8 1 . Robots Melted . | . . . . . . . . . . . . . Combat Hostiles . | . . . . . . . . . . . . . Parts Melted . | . . . . . . . . . . . . . Heat Transferred . | . . . . . . . . . . . . . Parts Sabotaged . | . . . . . . . . . . . . . Parts Stolen . | . . . . . . . . . . . . . Parts Stripped . | . . . . . . . . . . . . . Power Chain Reactions . | . . . . . . . . . . . . . Alert | -11 -10 -9 -8 -7 -6 -6 -5 -4 -3 -2 -2 -1 ------- Run | Yrd Mat Mat Mat Fac Fac DSF Fac Fac Res Res Tes Acc Maximum Alert Level 1 | . . . 1 1 . . . . . . . . Low Security (%) 97 | 100 100 100 79 90 100 100 100 100 100 100 100 100 Level 1 2 | . . . 20 10 . . . . . . . . Level 2 . | . . . . . . . . . . . . . Level 3 . | . . . . . . . . . . . . . Level 4 . | . . . . . . . . . . . . . Level 5 . | . . . . . . . . . . . . . High Security . | . . . . . . . . . . . . . Max Security . | . . . . . . . . . . . . . Peak Influence 368 | . 64 122 368 243 124 100 128 27 54 96 50 40 Initial 167 | . . 18 46 167 114 65 52 27 . . 28 24 Average 54 | . 23 47 95 130 108 81 68 11 12 21 16 16 Influence Increases 2256 | . 99 174 491 308 20 45 487 12 211 258 82 69 Destroy 0b10 Robot/C 400 | . 60 . 200 . . . 80 . . 20 . 40 Destroy 0b10 Robot/NC 140 | . 5 5 15 5 5 . 50 . 15 30 5 5 Destroy Leader 70 | . . . 30 . . . 18 . 4 16 2 . Successful Hack 155 | . 4 19 18 18 . . 22 12 44 . . 18 Disable Machine 150 | . . . 30 . 15 . 30 . 30 30 15 . Destroy Structure 141 | . . . 33 . . . 62 . 28 12 . 6 Partial Spotted 165 | . . 30 . 45 . . 75 . . 15 . . Lose Combat Pursuer 1035 | . 30 120 165 240 . 45 150 . 90 135 60 . Influence Decreases 2242 | . 55 106 235 441 161 39 531 66 213 207 93 95 Entered New Map 561 | . . 26 66 201 121 29 48 29 2 . 23 16 Time Decay 1538 | . 55 80 139 230 40 . 463 37 164 191 60 79 Lost Part 109 | . . . 30 10 . 10 . . 47 2 10 . Lost Ally 20 | . . . . . . . 20 . . . . . Purge Threat 14 | . . . . . . . . . . 14 . . Squads Dispatched 21 | . 2 3 3 5 . 2 2 . 2 1 1 . Investigation 1 | . . . . 1 . . . . . . . . Extermination 8 | . . . . 2 . . 2 . 2 1 1 . Reinforcement 12 | . 2 3 3 2 . 2 . . . . . . Assault . | . . . . . . . . . . . . . Garrison . | . . . . . . . . . . . . . Intercept . | . . . . . . . . . . . . . Searches Triggered . | . . . . . . . . . . . . . Construction Impeded 1 | . . . 1 . . . . . . . . . Haulers Reinforced . | . . . . . . . . . . . . . Active Scanning Responses . | . . . . . . . . . . . . . Cargo Convoy Interrupts . | . . . . . . . . . . . . . Stealth | -11 -10 -9 -8 -7 -6 -6 -5 -4 -3 -2 -2 -1 --------- Run | Yrd Mat Mat Mat Fac Fac DSF Fac Fac Res Res Tes Acc Distress Signals 13 | . . 1 3 2 . . . . 2 3 2 . Communications Jammed . | . . . . . . . . . . . . . Distress Signals . | . . . . . . . . . . . . . Times Spotted 145 | . 8 16 29 24 . 10 14 . 14 20 8 2 Peak Tracking Total 18 | . 2 8 18 11 . 7 4 . 6 7 6 2 Tactical Retreats 38 | . 1 4 5 6 . 3 7 . 4 5 3 . Traps | -11 -10 -9 -8 -7 -6 -6 -5 -4 -3 -2 -2 -1 ------- Run | Yrd Mat Mat Mat Fac Fac DSF Fac Fac Res Res Tes Acc Traps Triggered 7 | . . . . 3 . 1 . . . 1 . 2 Indirectly . | . . . . . . . . . . . . . Trap Hack Attempts . | . . . . . . . . . . . . . Triggered . | . . . . . . . . . . . . . Disarmed . | . . . . . . . . . . . . . Reprogrammed . | . . . . . . . . . . . . . Reused . | . . . . . . . . . . . . . Traps Extracted . | . . . . . . . . . . . . . Installed . | . . . . . . . . . . . . . Triggered . | . . . . . . . . . . . . . Machines | -11 -10 -9 -8 -7 -6 -6 -5 -4 -3 -2 -2 -1 ---------- Run | Yrd Mat Mat Mat Fac Fac DSF Fac Fac Res Res Tes Acc Machines Disabled 10 | . . . 2 . 1 . 2 . 2 2 1 . Max in Single Turn 1 | . . . 1 . 1 . 1 . 1 1 1 . Garrison Access 5 | . . . . . . . 2 . 1 1 . 1 Machines Repaired . | . . . . . . . . . . . . . Machines Dismantled . | . . . . . . . . . . . . . Machines Sabotaged . | . . . . . . . . . . . . . Overloaded Fab Kills . | . . . . . . . . . . . . . Hacking | -11 -10 -9 -8 -7 -6 -6 -5 -4 -3 -2 -2 -1 --------- Run | Yrd Mat Mat Mat Fac Fac DSF Fac Fac Res Res Tes Acc Machines Accessed 51 | . 4 6 7 1 3 . 15 1 5 6 1 2 Terminals 35 | . 3 5 5 1 2 . 9 1 2 5 1 1 Fabricators 1 | . . . . . . . 1 . . . . . Repair Stations . | . . . . . . . . . . . . . Recycling Units 6 | . 1 . 1 . 1 . 2 . 1 . . . Scanalyzers 4 | . . 1 1 . . . 1 . 1 . . . Garrison Access 5 | . . . . . . . 2 . 1 1 . 1 Total Hacks 150 | . 9 11 21 4 7 . 51 5 11 22 4 5 Successful 86 | . 1 7 12 1 2 . 35 4 9 12 1 2 Failed 64 | . 8 4 9 3 5 . 16 1 2 10 3 3 Catastrophic 9 | . 2 1 . 1 . . 3 . . 1 . 1 Database Lockouts . | . . . . . . . . . . . . . Manual 91 | . 4 9 15 1 4 . 29 5 5 15 4 . Terminals 115 | . 5 10 16 4 5 . 36 5 6 21 4 3 Fabricators 4 | . . . . . . . 4 . . . . . Repair Stations . | . . . . . . . . . . . . . Recycling Units 13 | . 4 . 2 . 2 . 4 . 1 . . . Scanalyzers 10 | . . 1 3 . . . 4 . 2 . . . Garrison Access 8 | . . . . . . . 3 . 2 1 . 2 Terminal Hacks 35 | . . 2 6 . 1 . 14 2 4 5 . 1 Prototype ID Bank 1 | . . . . . . . 1 . . . . . Open Door 1 | . . . . . . . . . . . . 1 Open DSF 1 | . . . . . 1 . . . . . . . Level Access Points 2 | . . . . . . . 1 . 1 . . . Branch Access Points 2 | . . . 1 . . . 1 . . . . . Machine Index 1 | . . . . . . . . . . 1 . . Terminal Index 4 | . . . . . . . 1 1 1 1 . . Unreport Threat 1 | . . . . . . . . . . 1 . . Locate Traps 4 | . . 1 . . . . 3 . . . . . Recall Extermination 1 | . . . . . . . 1 . . . . . Recall Reinforcements 1 | . . . 1 . . . . . . . . . Registered Components 1 | . . . . . . . 1 . . . . . Zone Layout 15 | . . 1 4 . . . 5 1 2 2 . . Fabricator Hacks 2 | . . . . . . . 2 . . . . . Network Status 1 | . . . . . . . 1 . . . . . Build 1 | . . . . . . . 1 . . . . . Repair Station Hacks . | . . . . . . . . . . . . . Recycling Unit Hacks 4 | . . . . . . . 3 . 1 . . . Retrieve Components 4 | . . . . . . . 3 . 1 . . . Scanalyzer 10 | . . 1 3 . . . 4 . 2 . . . Retrieve Study 10 | . . 1 3 . . . 4 . 2 . . . Garrison Access Hacks 5 | . . . . . . . 2 . 1 1 . 1 Seal Access 5 | . . . . . . . 2 . 1 1 . 1 Unauthorized Hacks 30 | . 1 4 3 1 1 . 10 2 1 6 1 . Terminals 29 | . 1 4 3 1 1 . 9 2 1 6 1 . Track 1 | . . . . . . . . . . 1 . . Assimilate 2 | . . . . . . . 2 . . . . . Botnet 22 | . 1 3 3 1 1 . 6 1 1 4 1 . Operators 4 | . . 1 . . . . 1 1 . 1 . . Fabricators 1 | . . . . . . . 1 . . . . . Liberate 1 | . . . . . . . 1 . . . . . Repair Stations . | . . . . . . . . . . . . . Recycling Units . | . . . . . . . . . . . . . Scanalyzers . | . . . . . . . . . . . . . Garrison Access . | . . . . . . . . . . . . . Data Cores Recovered . | . . . . . . . . . . . . . Used . | . . . . . . . . . . . . . Hacking Detections 39 | . 4 5 6 1 2 . 10 1 2 5 1 2 Full Trace Events . | . . . . . . . . . . . . . Feedback Events . | . . . . . . . . . . . . . Feedback Blocked . | . . . . . . . . . . . . . Robot Schematics Acquired . | . . . . . . . . . . . . . Robots Built . | . . . . . . . . . . . . . Authchips . | . . . . . . . . . . . . . Time . | . . . . . . . . . . . . . Total Robot Build Rating . | . . . . . . . . . . . . . Part Schematics Acquired . | . . . . . . . . . . . . . Parts Built 2 | . . . . . . . 2 . . . . . Authchips . | . . . . . . . . . . . . . Time 69 | . . . . . . . 69 . . . . . Total Part Build Rating 18 | . . . . . . . 18 . . . . . Part Studies Acquired 10 | . . 1 3 . . . 4 . 2 . . . Parts Repaired . | . . . . . . . . . . . . . Time . | . . . . . . . . . . . . . Parts Recycled . | . . . . . . . . . . . . . Recycled Matter . | . . . . . . . . . . . . . Retrieved Matter . | . . . . . . . . . . . . . Retrieved Components 8 | . . . . . . . 6 . 2 . . . Parts Scanalyzed . | . . . . . . . . . . . . . Part Schematics Acquired . | . . . . . . . . . . . . . Parts Damaged . | . . . . . . . . . . . . . Bothacking | -11 -10 -9 -8 -7 -6 -6 -5 -4 -3 -2 -2 -1 ------------ Run | Yrd Mat Mat Mat Fac Fac DSF Fac Fac Res Res Tes Acc Used RIF Installer . | . . . . . . . . . . . . . Robots Hacked . | . . . . . . . . . . . . . Non-combat . | . . . . . . . . . . . . . Combat . | . . . . . . . . . . . . . Robot Hacks Applied . | . . . . . . . . . . . . . Relay Couplers Released . | . . . . . . . . . . . . . Fabnet Peak Effective % . | . . . . . . . . . . . . . Robots Rewired . | . . . . . . . . . . . . . Allies Hacked . | . . . . . . . . . . . . . Hacks Repelled . | . . . . . . . . . . . . . Allies | -11 -10 -9 -8 -7 -6 -6 -5 -4 -3 -2 -2 -1 -------- Run | Yrd Mat Mat Mat Fac Fac DSF Fac Fac Res Res Tes Acc Total Allies 2 | . . . . . . . 2 . . . . . Largest Group 2 | . . . . . . . 2 . . . . . Highest-Rated Group 52 | . . . . . . . 52 . . . . . Highest-Rated Ally 26 | . . . . . . . 26 . . . . . Total Orders 2 | . . . . . . . 2 . . . . . STAY 1 | . . . . . . . 1 . . . . . FOLLOW 1 | . . . . . . . 1 . . . . . Ally Attacks . | . . . . . . . . . . . . . Total Damage . | . . . . . . . . . . . . . Kills . | . . . . . . . . . . . . . Allies Corrupted . | . . . . . . . . . . . . . Allies Melted . | . . . . . . . . . . . . . Intel | -11 -10 -9 -8 -7 -6 -6 -5 -4 -3 -2 -2 -1 ------- Run | Yrd Mat Mat Mat Fac Fac DSF Fac Fac Res Res Tes Acc Active Infowar (turns) 4110 | . 200 161 369 480 91 130 1129 89 594 501 182 184 Optics 754 | . . . . . . . . . . 388 182 184 Sensors 2036 | . . . . 68 49 49 788 89 573 287 133 . Terrain 1927 | . . . . . . . 1006 89 588 47 25 172 Structural 1431 | . 200 161 369 480 91 130 . . . . . . Seismic 278 | . . . 278 . . . . . . . . . T.N.C. 108 | . . . . . . . . . . 108 . . ECM 23 | . . . . . . . 4 . 14 5 . . Robot Analysis Total . | . . . . . . . . . . . . . Derelict Logs Recovered . | . . . . . . . . . . . . . Drone Launches . | . . . . . . . . . . . . . Drone Recoveries . | . . . . . . . . . . . . . Exploration | -11 -10 -9 -8 -7 -6 -6 -5 -4 -3 -2 -2 -1 ------------- Run | Yrd Mat Mat Mat Fac Fac DSF Fac Fac Res Res Tes Acc Turns Passed 4495 | 21 217 161 385 480 91 138 1190 89 630 727 182 184 Spaces Moved 5658 | 33 195 278 461 780 127 169 1369 135 818 797 247 249 Core 5658 | 33 195 278 461 780 127 169 1369 135 818 797 247 249 Treads . | . . . . . . . . . . . . . Legs . | . . . . . . . . . . . . . Wheels . | . . . . . . . . . . . . . Hover . | . . . . . . . . . . . . . Flight . | . . . . . . . . . . . . . Fastest Speed 50 | 50 50 50 50 50 50 50 50 50 50 50 50 50 Average Speed 51 | 50 56 50 57 50 51 50 51 50 50 53 51 50 Slowest Speed 150 | 50 100 50 100 50 100 50 100 50 150 100 100 50 Overloaded Moves . | . . . . . . . . . . . . . Propulsion Burnouts . | . . . . . . . . . . . . . Robots Hopped . | . . . . . . . . . . . . . Potential Cave-ins 2 | . . . . . . . . . 2 . . . Cave-ins Triggered . | . . . . . . . . . . . . . Exploration Rate (%) 26 | 3 32 32 54 20 5 81 38 5 21 14 32 10 Regions Visited 12 Branch Regions 1 Pre-discovered Areas . | . . . . . . . . . . . . . Known Exits Taken 6 | . . . . . 1 . 1 1 1 1 1 . Unknown Exits Taken 5 | 1 1 1 1 1 . . . . . . . . Scrap Searched . | . . . . . . . . . . . . . Spaces Dug 38 | . . . 9 . . . 12 . 12 4 . 1 Terrain Destroyed 87 | . . . 29 . . . 34 . 17 5 . 2 Melee 31 | . . . 5 . . . 12 . 12 2 . . Projectile 10 | . . . . . . . . . 5 3 . 2 AOE 46 | . . . 24 . . . 22 . . . . . Terrain Rammed . | . . . . . . . . . . . . . Walls Destroyed . | . . . . . . . . . . . . . Machines Disabled . | . . . . . . . . . . . . . Actions | -11 -10 -9 -8 -7 -6 -6 -5 -4 -3 -2 -2 -1 --------- Run | Yrd Mat Mat Mat Fac Fac DSF Fac Fac Res Res Tes Acc Total 6977 | 37 259 297 566 868 147 220 1798 156 997 1036 294 302 Wait 962 | . 26 7 58 78 11 40 337 16 131 185 31 42 Move 5645 | 32 194 277 460 779 126 168 1368 134 817 796 246 248 Hop . | . . . . . . . . . . . . . Pick Up 27 | 5 2 . 7 2 . . 9 . 1 . 1 . Fast Attach 51 | . 2 1 4 4 4 4 11 3 7 6 4 1 Attach 45 | . 3 1 10 1 2 . 16 . 1 6 3 2 Detach 45 | . 1 2 8 1 2 2 15 1 1 6 4 2 Swap 10 | . 1 . . . . 1 . . 6 . . 2 Drop 31 | . 2 3 5 2 . . 11 2 5 . 1 . Fire 53 | . 28 4 7 . . . 2 . 5 3 . 4 Melee 100 | . . . 7 1 2 . 29 . 23 34 4 . Ram 2 | . . 2 . . . . . . . . . . Kick . | . . . . . . . . . . . . . Crush . | . . . . . . . . . . . . . Escape Stasis 5 | . . . . . . 5 . . . . . . Rewire . | . . . . . . . . . . . . . Trap . | . . . . . . . . . . . . . Miscellaneous 1 | . . . . . . . . . . . . 1 Route ------- -11/Scrapyard -10/Materials -9/Materials -8/Materials (discovered 3 exits: *Fac / *Sto x2) -7/Factory -6/Factory -6/DSF -5/Factory (discovered 8 exits: *Fac x4 / Upp x2 / Ext x2) -4/Factory -3/Research (discovered 3 exits: *Res x3) -2/Research -2/Testing -1/Access To Epsilon Eridani History --------- Turn | Location | Event 6 | -11/Scrapyard | Discovered new exit (range 16) 22 | -11/Scrapyard | Entered Materials 217 | -10/Materials | Discovered new exit (range 3) 239 | -10/Materials | Entered another Materials area 239 | -9/Materials | Evolved 2 slots: Utility x2 311 | -9/Materials | Build established: Mutant 396 | -9/Materials | Discovered new exit (range 10) 400 | -9/Materials | Entered another Materials area 400 | -8/Materials | Evolved 2 slots: Utility x2 677 | -8/Materials | Identified exit to Storage 746 | -8/Materials | Core integrity fell below 50% 777 | -8/Materials | Discovered new exit (range 16) 785 | -8/Materials | Entered Factory 785 | -7/Factory | Evolved 2 slots: Utility x2 865 | -7/Factory | Build established: Hacker-Mutant 1247 | -7/Factory | Core integrity fell below 50% 1259 | -7/Factory | Discovered new exit (range 10) 1265 | -7/Factory | Entered another Factory area 1265 | -6/Factory | Evolved 2 slots: Utility x2 1356 | -6/Factory | Identified exit to DSF 1356 | -6/Factory | Entered DSF 1377 | -6/DSF | Additional patrols routed to DSF 1484 | -6/DSF | Discovered new exit (range 11) 1494 | -6/DSF | Identified exit to Factory 1494 | -6/DSF | Entered Factory 1494 | -5/Factory | Evolved 2 slots: Utility x2 1694 | -5/Factory | Identified exit to Upper Caves 1694 | -5/Factory | Identified exit to Extension 1814 | -5/Factory | Identified exit to Factory 2545 | -5/Factory | Fabricated Adv. Cloaking Device? 2624 | -5/Factory | Build established: Wizard-Scout 2684 | -5/Factory | Entered another Factory area 2684 | -4/Factory | Evolved 2 slots: Utility x2 2759 | -4/Factory | Discovered new exit (range 8) 2771 | -4/Factory | Identified exit to Research 2773 | -4/Factory | Entered Research 2773 | -3/Research | Evolved 2 slots: Utility x2 2830 | -3/Research | Spotted B-86 Titan 3374 | -3/Research | Identified exit to Research 3393 | -3/Research | Spotted B-86 Titan 3403 | -3/Research | Entered another Research area 3403 | -2/Research | Evolved 2 slots: Utility x2 3413 | -2/Research | Lost 5 parts (5u) 3652 | -2/Research | Build established: Wizard-Mutant 3758 | -2/Research | Lost 6 parts (5u1w) 3912 | -2/Research | Discovered new exit (range 19) 3956 | -2/Research | Identified exit to Testing 4130 | -2/Research | Entered Testing 4155 | -2/Testing | Found Prototype Processor 4155 | -2/Testing | Identified Exp. Core Analyzer 4199 | -2/Testing | Found Faulty Exp. Core Analyzer 4203 | -2/Testing | Found Exp. Core Analyzer 4214 | -2/Testing | Watched by a mysterious "MATRIX" hacker. 4267 | -2/Testing | Found Prototype Processor 4267 | -2/Testing | Identified Exp. Signal Interpreter 4286 | -2/Testing | Found Prototype Ballistic Gun 4286 | -2/Testing | Identified Hyp. Multirail 4298 | -2/Testing | Discovered new exit (range 8) 4309 | -2/Testing | Build established: Hacker-Scout 4312 | -2/Testing | Identified exit to Access 4312 | -2/Testing | Entered Access 4312 | -1/Access | Evolved 2 slots: Utility x2 4493 | -1/Access | Discovered new exit (range 5) 4495 | -1/Access | Identified exit to Surface 4496 | *** | Escaped! Last Messages --------------- 04362_ System corrupted (+4). 04364_ U-05 Engineer lays Concrete. 04385_ System corrupted: Heat flow error (+146). 04393_ HV Slug penetrates G-73 Enforcer. 04393_ G-73 Enforcer suffers critical hit (Destroy). 04393_ G-73 Enforcer destroyed. 04393_ G-73 Enforcer suffers critical hit (Destroy). 04393_ G-73 Enforcer destroyed. 04403_ Acquired 70 matter. 04415_ System corrupted: Heat flow error (+102). 04430_ System corrupted: Heat flow error (+193). 04448_ XMO5R6L:PD/,DY,ODVTM 04473_ System corrupted: Component data lost. 04491_ Connecting with Terminal... >>Open(Door) Sealed Barrier opened. 04493_ The Access Shell folds into the floor. 04493_ EXIT=FOUND 04495_ EXIT=IDENTIFIED: SURFACE [Achievement: The Little Core That Could] Map ----- +----------------------------------------------------+ | ?????????????????????????????????????????????????? | | ?????????????????????????????????????????????????? | | ?????????????????????????????????????????????????? | | ?????????????????????????????????????????????????? | | ?????????????????????????????????????????????????? | | ?????????????????????????????????????????????????? | | ???????????????????????????????#?????????????????? | | ?????????????????????#??????????????? ? ?????? ??? | | ???????????????????????????#??????? ? ??? ?????+?? | | ???????????????????????????????#????????????? ???? | | ?????????????????#?????????????#????? ???????????? | | ??????????????????????#??#??????#????##+##??? ???? | | ?????????????????????#???????#???#?### ?? | | ????????????????????????#??? ??? ?+ ? ????? | | ????????????#???????#??#? ? ???? # #??#?????# | | ??????????????????#??#????? ? ? ? ??+ #?##??#?#? | | ????????????????????????? ?? ?? ??? # #???????#? | | ??????????????#??#????????? ?? ? ?? ?# ##? ??##?# | | ???????????????????##?#??#??#?#??????# #?? ? #?? | | ?????????????#?????????##?#?#####?##?# #???? #? | | ???????????#????????########## ####### ## # ?? | | ????????????????????" ## #? | | ???????????????? ???" #? # ?? | | ????????????????????" #? +? | | ????????????????????" ##* ##?? | | ???????????????????"" "@ ;# ? ?#?? | | ???????????????? ?"?" "" #"######## | | ????????? ????????"" ## | | ???????????? ???????" ## | | ???????????????????"" """ """ ## | | ?????????? ???? ???" """T""" ## | | ???????? ???????#???########## ####### ## | | ??????????????????????#???#?####?#?### ## | | ???????????????????????###?#?###???#?# ## | | ????????????#??????#?#????######?#?#?# ## | | ????????????#?????????#??####?####?#?# ## | | ????????????#?? ??????#????? ?? ??#?## ## | | ??????????????????? ? ??? ? ? #?##?# ## | | ???????????????????? ?? ?? ? ?##?#?# ## | | ???????????????? ???????? ? ? ?#???## ########## | | ??????????????????????#???? ? ??##?#?# #?? ? ? | | ????????????????????????? ?? ? ???#?#? # ?? ?? ? | | ????????????????????????? ?? ????##?# # " ? ? | | ??????????????????????????? ??#?#### ? ""? ? | | ????????????????????????#??+#??+##???# ? ?"?" | | ??????????????????????????? ?? ? ? # ?? | | ????????????????????????? ? ? ? ? ? ? ?? | | ??????????????????????????????#??#????? #? ?????? | | ??????????????????????????#?? ???? # ?#?#?#??### | | ?????????????????????????????? ?? ? ?# ########## | +----------------------------------------------------+ Best States ------------- Heat Dissipation 52 Energy Generation 16 Energy Capacity 900 Matter Stores 300 Matter Capacity 300 Sight Range 20 Robot Scan Range 16 Terrain Scan Range 20 Terrain Scan Density 185 ECM Strength 2 Additional Mass Support 9 Corruption Block 8 Core Shielding 20 Evasion (%) 58 Melee Accuracy 6 Launcher Accuracy 20 Core Analysis 8 Offensive Hacking 54 Defensive Hacking 48 Item Schematics ----------------- None Robot Schematics ------------------ None Fabricated ------------ Adv. Cloaking Device | x2 | -5/Factory | Preloaded Repaired ---------- Nothing Studied --------- Assault Rifle | -9/Materials | Hacked Hvy. Mace | -8/Materials | Hacked Missile Launcher | -8/Materials | Hacked Minigun | -8/Materials | Hacked Power Sword | -5/Factory | Hacked Power Maul | -5/Factory | Hacked Hvy. Rocket Launcher | -5/Factory | Hacked Imp. Ion Engine | -5/Factory | Hacked Mic. Fission Core | -3/Research | Hacked Nova Cannon | -3/Research | Hacked Alien Tech Used ----------------- None Achievements -------------- The Little Core That Could Challenges ------------ None Game ------ Seed PhasingTrackerConstruct Manual? 0 Play Time 00:56:55 Cumulative 1604.3 hours Start 2026.02.14 @ 02:11:00 End 2026.02.14 @ 04:13:38 Sessions 5 Manual Loads 0 Difficulty Rogue Special Mode None Game No. 1145 Rogue 1105 Adventurer 40 Explorer 0 Win Type 0 Total 205 Types 90/11/74/2/2/4/16/2/1/3 Lore% 97 Gallery% 95 Achievement% 81 Wizard Run 0 Options --------- Layout 0 ASCII 0 Keyboard 0 Movement Numpad Keybinds 0 Fullscreen 0 Font 20/Terminus Map View 76x50 Zoom Use 0% Tactical HUD 1 Map Filters NONE Filters NONE Steam 1 RUN: 6cde3f97-e419-4243-aede-80cd7caeaeb3